Cogmind - Beta 9.4 *** ADVENTURER MODE // 2020.07.30 @ 21:13:15 Player: Scyralis Result: Destroyed by G-34 Mercenary with Small Laser Performance ------------- Evolutions (1) 500 Regions Visited (3) 600 Robots Destroyed (60) 300 Value Destroyed (1423) 1423 Prototype IDs (0) 0 Alien Tech Used (0) 0 Bonus (41) 41 TOTAL SCORE: 2864 Bonus ------- High Alert Combat Kills 41 Cogmind --------- Core Integrity 0/400 Matter 300/300 Energy 0/400 System Corruption 0% Temperature Cool (6) Movement Walking (120) Location -9/Materials Parts ------- > --- POWER (1) -------- (None) > --- PROPULSION (2) --- Aluminum Leg > --- UTILITY (4) ------ Large Battery Improved Targeting Computer Improved Targeting Computer ECM Suite > --- WEAPON (2) ------- Spread Laser > --- INVENTORY (4) ---- Improved Aluminum Leg Peak State ------------ > --- POWER ------------ Light Nuclear Core > --- PROPULSION ------- Aluminum Leg Aluminum Leg > --- UTILITY ---------- Large Battery Targeting Computer Improved Targeting Computer Improved Targeting Computer > --- WEAPON ----------- Light EM Pulse Cannon Light EM Pulse Cannon > --- INVENTORY -------- ECM Suite [Rating: 15] Favorites ----------- Power Ion Engine Engine Ion Engine Power Core Light Nuclear Core Propulsion Aluminum Leg Leg Aluminum Leg Utility Improved Targeting Computer Device ECM Suite Storage Large Battery Processor Improved Targeting Computer Weapon Light EM Pulse Cannon Energy Gun EM Pulse Gun Energy Cannon Light EM Pulse Cannon Build | -11 -10 -10 -9 ------- Run | Scr Mat Min Mat Slots Evolved 2 | . . . 2 Power . | . . . . Propulsion . | . . . . Utility 2 | . . . 2 Weapon . | . . . . Parts Attached 22 | 4 8 2 8 Power 4 | 1 . 1 2 Engine 3 | 1 . . 2 Core 1 | . . 1 . Reactor . | . . . . Propulsion 5 | 2 1 1 1 Treads . | . . . . Leg 5 | 2 1 1 1 Wheel . | . . . . Hover . | . . . . Flight . | . . . . Utility 5 | . 2 . 3 Device 1 | . . . 1 Storage 1 | . . . 1 Processor 3 | . 2 . 1 Hackware . | . . . . Protection . | . . . . Artifact . | . . . . Weapon 8 | 1 5 . 2 Energy Gun 3 | 1 1 . 1 Energy Cannon 5 | . 4 . 1 Ballistic Gun . | . . . . Ballistic Cannon . | . . . . Launcher . | . . . . Special Weapon . | . . . . Impact Weapon . | . . . . Slashing Weapon . | . . . . Piercing Weapon . | . . . . Special Melee Weapon . | . . . . Unidentified Prototypes . | . . . . Parts Lost 6 | . . . 6 Power 1 | . . . 1 Propulsion 2 | . . . 2 Utility 1 | . . . 1 Weapon 2 | . . . 2 Highest Loss Streak 4 | . . . 4 Average Slot Usage (%) 90 | . 92 100 86 Engine 10 | . 14 12 7 Core 1 | . . 1 2 Leg 23 | . 28 28 18 Storage 5 | . . . 9 Processor 28 | . 26 28 30 Energy Gun 2 | . 4 . 1 Energy Cannon 18 | . 17 28 15 Naked Turns . | . . . . Heaviest Build 18 | 7 13 13 18 Greatest Support 20 | 20 20 20 20 Greatest Overweight (x) 2 | . . . 2 Average Overweight (x) . | . . . . Largest Inventory Capacity 4 | 4 4 4 4 Average Capacity 4 | 4 4 4 4 Most Carried 3 | 2 3 2 2 Average Carried . | . . 1 . Final Capacity 4 | 4 4 4 4 Final Carried 1 | . 1 1 1 Class Distribution -------------------- 100% | Mutant Dominant Class ---------------- Mutant | -10/Materials Mutant | -10/Mines Mutant | -9/Materials Resources | -11 -10 -10 -9 ----------- Run | Scr Mat Min Mat Matter Collected 420 | 240 60 40 80 Remotely . | . . . . Salvage Created 2166 | 100 568 87 1411 Parts 127 | 2 43 4 78 Haulers Intercepted 6 | . 2 . 4 Recyclers Shooed 3 | . 1 . 2 Parts Field Recycled . | . . . . Retrieved Matter . | . . . . Parts Self-Destructed . | . . . . Prevented . | . . . . Kills | -11 -10 -10 -9 ------- Run | Scr Mat Min Mat Combat Hostiles Destroyed 36 | . 8 2 26 Guns 8 | . 3 . 5 Cannons 15 | . 4 2 9 AOE 8 | . 1 . 7 Classes Destroyed 13 | 1 6 1 5 Worker 3 | . 1 1 1 Builder 5 | . 4 . 1 Hauler 6 | . 2 . 4 Recycler 3 | 1 1 . 1 Carrier 1 | . . . 1 Mechanic 1 | . . . 1 Operator 1 | . . . 1 Watcher 4 | . 2 . 2 Swarmer 13 | . 3 . 10 Grunt 11 | . 5 1 5 Duelist 2 | . . . 2 Sentry 9 | . . . 9 Demolisher 1 | . . 1 . Best Kill Streak 11 | 1 10 2 11 Combat Bots Only 9 | . 3 1 9 Max Kills in Single Turn 4 | 1 3 1 4 Gunslinging . | . . . . Exploded 3 | . 1 . 3 Melee . | . . . . Uniques/NPCs Destroyed . | . . . . Combat | -11 -10 -10 -9 -------- Run | Scr Mat Min Mat Damage Taken 1051 | . 95 78 878 Core 435 | . 17 10 408 Absorbed by Shields . | . . . . Core Remaining (%) 94 | 100 . 89 . Volleys Fired 113 | 5 29 5 74 Largest 2 | 1 2 2 2 Hottest 112 | 40 112 112 112 Shots Fired 169 | 5 40 10 114 Gun 38 | 5 18 . 15 Cannon 131 | . 22 10 99 Launcher . | . . . . Special . | . . . . Kinetic . | . . . . Thermal 15 | . . . 15 Explosive . | . . . . Electromagnetic 154 | 5 40 10 99 Robot Hit Streak 34 | 5 18 26 34 Robot Miss Streak 1 | . 1 . 1 Penetration Max . | . . . . Secondary Targets . | . . . . Shots Hit Robots 144 | 5 32 8 99 Core Hits 94 | 2 20 4 68 Critical Hits . | . . . . Critical Kills . | . . . . Critical Parts Destroyed . | . . . . Melee Attacks . | . . . . Impact . | . . . . Slashing . | . . . . Piercing . | . . . . Sneak Attacks . | . . . . Combat Hostiles . | . . . . Follow-up Attacks . | . . . . Damage Inflicted 4138 | 70 838 189 3041 Guns 551 | 70 211 . 270 Cannons 2272 | . 335 189 1748 Explosions 1315 | . 292 . 1023 Melee . | . . . . Ramming . | . . . . Kinetic . | . . . . Thermal 1269 | . 292 . 977 Explosive . | . . . . Electromagnetic 2869 | 70 546 189 2064 Impact . | . . . . Slashing . | . . . . Piercing . | . . . . Highest Corruption . | . . . . Average Corruption . | . . . . Corruption Purged . | . . . . Overload Shots . | . . . . Overflow Damage 152 | . 18 12 122 Projectiles 14 | . . 12 2 Explosions 138 | . 18 . 120 Melee . | . . . . Knockbacks . | . . . . Impact . | . . . . Kinetic . | . . . . Secondary . | . . . . Self-Inflicted Damage 11 | . . . 11 Shots 1 | . . . 1 Rammed . | . . . . Targets Rammed . | . . . . Kicked . | . . . . Crushed . | . . . . Highest Temperature 234 | 20 234 120 198 Average Temperature 60 | 14 76 44 58 Received Heat Transfer 516 | . 57 27 432 Siege Activations . | . . . . Robots Corrupted 5 | . . . 5 Combat Hostiles 5 | . . . 5 Parts Fried 16 | . 1 . 15 Impact Corruptions . | . . . . Robots Melted . | . . . . Combat Hostiles . | . . . . Parts Melted 1 | . 1 . . Heat Transferred 1245 | . 250 . 995 Parts Sabotaged . | . . . . Parts Stolen . | . . . . Parts Stripped . | . . . . Power Chain Reactions 7 | . 3 . 4 Missiles Intercepted . | . . . . Alert | -11 -10 -10 -9 ------- Run | Scr Mat Min Mat Peak Influence 465 | 5 242 110 465 Average Influence 166 | 2 99 65 248 Maximum Alert Level 2 | . 1 . 2 Low Security (%) 65 | 100 93 100 36 Level 1 26 | . 6 . 48 Level 2 7 | . . . 15 Level 3 . | . . . . Level 4 . | . . . . Level 5 . | . . . . High Security . | . . . . Max Security . | . . . . Squads Dispatched 4 | . 1 . 3 Investigation 4 | . 1 . 3 Extermination . | . . . . Reinforcement . | . . . . Assault . | . . . . Garrison . | . . . . Intercept . | . . . . Construction Impeded . | . . . . Haulers Reinforced . | . . . . Stealth | -11 -10 -10 -9 --------- Run | Scr Mat Min Mat Distress Signals 4 | . 1 1 2 Communications Jammed . | . . . . Distress Signals . | . . . . Times Spotted 63 | . 11 3 49 Peak Tracking Total 13 | . 4 2 13 Tactical Retreats 9 | . 1 1 7 Traps | -11 -10 -10 -9 ------- Run | Scr Mat Min Mat Traps Triggered 3 | . 2 . 1 Indirectly . | . . . . Trap Hack Attempts . | . . . . Triggered . | . . . . Disarmed . | . . . . Reprogrammed . | . . . . Reused . | . . . . Traps Extracted . | . . . . Installed . | . . . . Triggered 1 | . . . 1 Machines | -11 -10 -10 -9 ---------- Run | Scr Mat Min Mat Machines Disabled 16 | . 3 . 13 Max in Single Turn 7 | . 1 . 7 Machines Sabotaged . | . . . . Garrisons Compromised . | . . . . Overloaded Fab Kills . | . . . . Fab Network Shutdowns . | . . . . Hacking | -11 -10 -10 -9 --------- Run | Scr Mat Min Mat Machines Accessed 15 | . 6 . 9 Terminals 13 | . 6 . 7 Fabricators . | . . . . Repair Stations . | . . . . Recycling Units 1 | . . . 1 Scanalyzers 1 | . . . 1 Garrison Access . | . . . . Total Hacks 57 | . 22 . 35 Successful 32 | . 14 . 18 Failed 25 | . 8 . 17 Catastrophic 3 | . . . 3 Database Lockouts . | . . . . Manual 40 | . 17 . 23 Terminals 53 | . 22 . 31 Fabricators . | . . . . Repair Stations . | . . . . Recycling Units 3 | . . . 3 Scanalyzers 1 | . . . 1 Garrison Access . | . . . . Terminal Hacks 21 | . 11 . 10 Robot Analysis 8 | . 7 . 1 Level Access Points 1 | . . . 1 Branch Access Points 1 | . . . 1 Emergency Access Points 1 | . . . 1 Terminal Index 1 | . 1 . . Scanalyzer Index 1 | . . . 1 Unreport Threat 3 | . 1 . 2 Locate Traps 1 | . 1 . . Dispatch Records 1 | . . . 1 Transport Status 1 | . . . 1 Recall Investigation 1 | . . . 1 Registered Prototypes 1 | . 1 . . Fabricator Hacks . | . . . . Repair Station Hacks . | . . . . Recycling Unit Hacks 1 | . . . 1 Retrieve Components 1 | . . . 1 Scanalyzer . | . . . . Garrison Access Hacks . | . . . . Unauthorized Hacks 26 | . 7 . 19 Terminals 9 | . 3 . 6 Track 4 | . . . 4 Botnet 3 | . 2 . 1 Detonate 2 | . 1 . 1 Fabricators . | . . . . Repair Stations . | . . . . Recycling Units . | . . . . Scanalyzers 1 | . . . 1 Extract 1 | . . . 1 Garrison Access . | . . . . Data Cores Recovered 1 | . . . 1 Used . | . . . . Hacking Detections 13 | . 6 . 7 Full Trace Events 4 | . 1 . 3 Feedback Events . | . . . . Feedback Blocked . | . . . . Robot Schematics Acquired . | . . . . Robots Built . | . . . . Matter . | . . . . Time . | . . . . Total Robot Build Rating . | . . . . Part Schematics Acquired 8 | . . . 8 Parts Built . | . . . . Matter . | . . . . Time . | . . . . Total Part Build Rating . | . . . . Parts Repaired . | . . . . Time . | . . . . Parts Recycled . | . . . . Recycled Matter . | . . . . Retrieved Matter . | . . . . Retrieved Components 9 | . . . 9 Parts Scanalyzed . | . . . . Part Schematics Acquired . | . . . . Parts Damaged . | . . . . Bothacking | -11 -10 -10 -9 ------------ Run | Scr Mat Min Mat Used RIF Installer . | . . . . Robots Hacked . | . . . . Non-combat . | . . . . Combat . | . . . . Robot Hacks Applied . | . . . . Relay Couplers Released . | . . . . Robots Rewired . | . . . . Allies Hacked . | . . . . Hacks Repelled . | . . . . Allies | -11 -10 -10 -9 -------- Run | Scr Mat Min Mat Total Allies . | . . . . Largest Group . | . . . . Highest-Rated Group . | . . . . Highest-Rated Ally . | . . . . Total Orders . | . . . . Ally Attacks . | . . . . Total Damage . | . . . . Kills . | . . . . Allies Corrupted . | . . . . Allies Melted . | . . . . Intel | -11 -10 -10 -9 ------- Run | Scr Mat Min Mat Robot Analysis Total 8 | . 7 . 1 Derelict Logs Recovered . | . . . . Drone Launches . | . . . . Drone Recoveries . | . . . . Exploration | -11 -10 -10 -9 ------------- Run | Scr Mat Min Mat Turns Passed 2321 | 73 665 399 1184 Spaces Moved 1598 | 49 481 316 752 Core 56 | 6 . . 50 Treads . | . . . . Legs 1542 | 43 481 316 702 Wheels . | . . . . Hover . | . . . . Flight . | . . . . Fastest Speed 50 | 50 120 120 50 Average Speed 120 | 111 120 120 120 Slowest Speed 150 | 120 120 120 150 Overloaded Moves . | . . . . Propulsion Burnouts . | . . . . Robots Hopped . | . . . . Cave-ins Triggered . | . . . . Exploration Rate (%) 59 | 4 95 67 71 Regions Visited 3 Branch Regions 1 Pre-discovered Areas . | . . . . Known Exits Taken . | . . . . Unknown Exits Taken 3 | 1 1 1 . Scrap Searched 1 | . . 1 . Spaces Dug . | . . . . Terrain Destroyed 80 | . 9 . 71 Melee . | . . . . Projectile . | . . . . AOE 80 | . 9 . 71 Actions | -11 -10 -10 -9 --------- Run | Scr Mat Min Mat Total 1831 | 63 529 326 913 Wait 70 | . . . 70 Move 1595 | 48 480 315 752 Hop . | . . . . Pick Up 24 | 5 9 2 8 Fast Attach . | . . . . Attach 19 | 4 6 1 8 Detach . | . . . . Swap 3 | . 2 1 . Drop 7 | 1 3 2 1 Fire 113 | 5 29 5 74 Melee . | . . . . Ram . | . . . . Kick . | . . . . Crush . | . . . . Escape Stasis . | . . . . Rewire . | . . . . Trap . | . . . . Miscellaneous . | . . . . Route ------- -11/Scrapyard -10/Materials (discovered 5 exits: *Mat x3 / [*Min x2]) -10/Mines -9/Materials (discovered 4 exits: *Mat x3 / Min) History --------- Turn | Location | Event 3 | -11/Scrapyard | Discovered new exit (range 15) 74 | -11/Scrapyard | Entered Materials 155 | -10/Materials | Discovered new exit (range 16) 232 | -10/Materials | Discovered new exit (range 12) 333 | -10/Materials | Build established: Mutant 370 | -10/Materials | Discovered new exit (range 7) 408 | -10/Materials | Discovered new exit (range 14) 720 | -10/Materials | Discovered new exit (range 15) 739 | -10/Materials | Entered Mines 753 | -10/Mines | Discovered new exit (range 8) 790 | -10/Mines | Assembled infested the area 1138 | -10/Mines | Entered Materials 1138 | -9/Materials | Evolved 2 slots: Utility x2 1144 | -9/Materials | Identified exit to Materials 1638 | -9/Materials | Destroyed 9 combat bots 2109 | -9/Materials | Identified exit to Mines 2153 | -9/Materials | Core integrity fell below 50% 2184 | -9/Materials | Core integrity fell below 20% 2188 | -9/Materials | Lost 4 parts (1p1n1u1w) 2322 | -9/Materials | Destroyed by G-34 Mercenary with Small Laser Last Messages --------------- 02139_ G-34 Mercenary unfolds itself. 02156_ Targeting Computer destroyed. 02157_ Aluminum Leg destroyed. 02158_ L-31 Rogue system corruption misinterpreted. 02158_ L-31 Rogue triggered Shock Trap. 02158_ The floor emits a surge of raw power. 02198_ Acquired Spread Laser. 02202_ S-10 Pest destroyed. 02208_ G-34 Mercenary destroyed. 02213_ Connecting with Terminal... >>Recall(Investigation) Establishing remote squad link... Recalled investigation squad WFUJB5X7SN. 02222_ Acquired Aluminum Leg. 02224_ Acquired 30 matter. 02303_ L-31 Rogue destroyed. 02306_ Acquired Imp. Aluminum Leg. 02311_ Katana fried. 02311_ L-31 Rogue destroyed. 02315_ G-34 Mercenary destroyed. Map ----- +----------------------------------------------------+ | ###+##### ?????????????? | | ## ?????????????? | | % ?????????????? | | " ?????????????? | | ### #### ?????????????? | | ?##+###? ??????????????? | | ?# #? ?????????????? | | ## ## "????????????? | | ## ## ????????????? | | ## ## "????????????? | | ## ## #????????????? | | ## ## #????????????? | | ## ## #????????????? | | ## ## #????????????? | | ## ## #????????????? | | ###+### #????????????? | | #????????????? | | #????????????? | | #????????????? | | ####### ########?????? | | ##?????## # ! #?????? | | ######### # =%! #?????? | | #[ # # """g[#?????? | | # %""" + + """*=#?????? | | #==*"T" # # """ %#?????? | | #= [ # # g @#?????? | | ####### # ########?????? | | #????### #????????? | | #??????# #????????? | | #??????# #????????? | | #??????####T### ##/######??????? | | #?????????###?#### #??????? | | ##????????????????#""" %#??????? | | ??????????????????#""" #??????? | | ??????????????????#""" #??????? | | ????############### *k #??????? | | ##### #=% #??????? | | + #+######??????? | | ##### """ """ """u+ ############ | | ????# """ g"" """ # # [== # | | ????# """ """ """ # # [= # | | ?#### g g # # [= """ # | | ## #####+######### # """ # | | ######### # """ # | | # + # | | # !!! ### ## # | | # !! #?#+############? | | u # !! #???? #????????? | | + ! #??""" #????????? | | # !%! # """ #????????? | +----------------------------------------------------+ Best States ------------- Heat Dissipation 28 Energy Generation 14 Energy Capacity 565 Matter Stores 300 Matter Capacity 300 Sight Range 16 Terrain Scan Density 10 ECM Strength 1 Resistance: KI 20 Resistance: TH 20 Resistance: EX 20 Resistance: EM 20 Resistance: I 20 Resistance: S 20 Resistance: P 20 Evasion (%) 50 Targeting Accuracy 17 Offensive Hacking 10 Item Schematics ----------------- Lgt. EM Pulse Cannon | -9/Materials | Extracted Imp. Light Cannon | -9/Materials | Extracted Beam Rifle | -9/Materials | Extracted ECM Suite | -9/Materials | Extracted Plasma Cutter | -9/Materials | Extracted Rocket Launcher | -9/Materials | Extracted Grenade Launcher | -9/Materials | Extracted Welding Torch | -9/Materials | Extracted Robot Schematics ------------------ None Fabricated ------------ Nothing Alien Tech Used ----------------- None Achievements -------------- None Challenges ------------ None Game ------ Seed DynamicHellfireDisintegrator Manual? 0 Play Time 00:21:47 Cumulative 157.7 hours Start 2020.07.30 @ 20:54:14 End 2020.07.30 @ 21:13:15 Sessions 1 Manual Loads 0 Difficulty Adventurer Special Mode None Game No. 75 Rogue 0 Adventurer 75 Explorer 0 Win Type - Total 1 Types 1/0/0/0/0/0/0 Lore% 29 Gallery% 52 Achievement% 38 Wizard Run 0 Options --------- ASCII 0 Keyboard 0 Movement Numpad Keybinds 0 Fullscreen 0 Font 12/Smallcaps Map View 83x54 Tactical HUD 1 Map Filters NONE Filters NONE Steam X RUN: ceb6d91a-d4ef-4b3e-97c6-f34cb63ee139